fUST/lending_fUST_20250118
["ID","MTS","AMOUNT","RATE_DAILY","PERIOD"]
[349364242,1737137444249,-500.0,0.00021917,3]
[349364244,1737137444261,-500.0,0.00021917,3]
[349364246,1737137444271,-500.0,0.00021917,3]
[349364249,1737137444281,-500.0,0.00021917,3]
[349364251,1737137444291,-500.0,0.00021917,3]
[349364253,1737137444300,-500.0,0.00021917,3]
[349364254,1737137444309,-500.0,0.00021917,3]
[349364256,1737137444319,-500.0,0.00021917,3]
[349364259,1737137444328,-500.0,0.00021917,3]
[349364261,1737137444338,-500.0,0.00021917,3]
[349364262,1737137444347,-500.0,0.00021917,3]
[349364265,1737137444357,-500.0,0.00021917,3]
[349364267,1737137444366,-500.0,0.00021917,3]
[349364269,1737137444377,-163.009,0.00021917,2]
[349364271,1737137444387,-500.0,0.00021917,3]
[349364273,1737137444397,-500.0,0.00021917,3]
[349364275,1737137444408,-500.0,0.00021917,3]
[349364277,1737137444417,-1000.0,0.00021917,3]
[349364279,1737137444426,-500.0,0.00021917,3]
[349364281,1737137444436,-500.0,0.00021917,3]
[349364283,1737137444446,-500.0,0.00021917,3]
[349364285,1737137444456,-500.0,0.00021917,3]
[349364287,1737137444467,-500.0,0.00021917,3]
[349364289,1737137444477,-500.0,0.00021917,3]
[349364291,1737137444487,-500.0,0.00021917,3]
[349364293,1737137444500,-500.0,0.00021917,3]
[349364295,1737137444510,-500.0,0.00021917,3]
[349364297,1737137444520,-500.0,0.00021917,3]
[349364299,1737137444529,-500.0,0.00021917,3]
[349364301,1737137444539,-595.61842445,0.00021917,3]
[349364303,1737137444548,-223.8883399,0.00021917,3]
[349364461,1737137446024,-276.1116601,0.00021917,3]
[349364463,1737137446035,-500.0,0.00021917,3]
[349364465,1737137446044,-500.0,0.00021917,3]
[349364467,1737137446055,-500.0,0.00021917,3]
[349364469,1737137446065,-507.44777956,0.00021917,3]
[349364471,1737137446075,-500.0,0.00021917,3]
[349364473,1737137446085,-217.28146966,0.00021917,3]
[349364475,1737137446094,-500.0,0.00021917,3]
[349364477,1737137446104,-500.0,0.00021917,3]
[349364479,1737137446113,-500.0,0.00021917,3]
[349364481,1737137446123,-500.0,0.00021917,3]
[349364483,1737137446133,-500.0,0.00021917,3]
[349364485,1737137446143,-638.56564379,0.00021917,3]
[349364487,1737137446153,-500.0,0.00021917,3]
[349364490,1737137446166,-500.0,0.00021917,3]
[349364492,1737137446175,-500.0,0.00021917,3]
[349364494,1737137446185,-500.0,0.00021917,3]
[349364496,1737137446195,-500.0,0.00021917,3]
[349364498,1737137446205,-500.0,0.00021917,3]
[349364500,1737137446215,-500.0,0.00021917,3]
[349364502,1737137446224,-500.0,0.00021917,3]
[349364504,1737137446233,-500.0,0.00021917,3]
[349364506,1737137446243,-500.0,0.00021917,3]
[349364508,1737137446253,-500.0,0.00021917,3]
[349364510,1737137446263,-500.0,0.00021917,3]
[349364512,1737137446272,-500.0,0.00021917,3]
[349364514,1737137446282,-254.97270118,0.00021917,3]
[349364517,1737137446299,-151.60157012,0.00021698,2]
[349364519,1737137446309,-245.02729882,0.00021917,3]
[349364521,1737137446318,-500.0,0.00021917,3]
[349364523,1737137446328,-500.0,0.00021917,3]
[349364525,1737137446339,-500.0,0.00021917,3]
[349364527,1737137446349,-500.0,0.00021917,3]
[349364529,1737137446359,-500.0,0.00021917,3]
[349364531,1737137446369,-500.0,0.00021917,3]
[349364533,1737137446380,-500.0,0.00021917,3]
[349364535,1737137446391,-500.0,0.00021917,3]
[349364537,1737137446402,-207.26516128,0.00021917,3]
[349364539,1737137446415,-500.0,0.00021917,3]
[349364541,1737137446425,-500.0,0.00021917,3]
[349364543,1737137446435,-255.42492599,0.00021917,3]
[349364554,1737137446532,-244.57507401,0.00021917,3]
[349364556,1737137446542,-500.0,0.00021917,3]
[349364558,1737137446552,-500.0,0.00021917,3]
[349364560,1737137446562,-238.61,0.00021917,3]
[349364562,1737137446573,-500.0,0.00021917,3]
[349364563,1737137446583,-212.00545228,0.00021917,3]
[349364566,1737137446593,-500.0,0.00021917,3]
[349364567,1737137446603,-98.08187577,0.00021917,3]
[349364570,1737137446615,-401.91812423,0.00021917,3]
[349364572,1737137446625,-362.64723266,0.00021917,3]
[349367078,1737137491921,160.0,0.00023192,120]
[349367195,1737137551450,160.0,0.00023095,120]
[349367196,1737137611877,160.0,0.00022971,120]
[349367198,1737137671797,160.0,0.00024104,120]
[349367199,1737137731918,160.0,0.00023775,120]
[349367201,1737137791843,160.0,0.00023359,120]
[349367206,1737137805777,159.611892,0.00013973,2]
[349367210,1737137817059,3064.0,0.00025,120]
[349367212,1737137860528,1000.0,0.00025,120]
[349367213,1737137861450,1000.0,0.00025,120]
[349367214,1737137862240,1000.0,0.00025,120]
[349367215,1737137862922,1000.0,0.00025,120]
[349367216,1737137863667,1000.0,0.00025,120]
[349367217,1737137864251,1000.0,0.00025,120]
[349367218,1737137865218,1000.0,0.00025,120]
[349367219,1737137868223,1000.0,0.00025,120]
[349367220,1737137874639,194.101866,0.0002411,120]
[349367221,1737137911620,160.0,0.0002394,120]
[349367222,1737137971323,160.0,0.00023316,120]
[349367223,1737138031586,160.0,0.00022627,120]
[349367224,1737138091280,160.0,0.00022666,120]
[349367225,1737138125185,378.264795,0.00025,120]
[349367226,1737138151330,160.0,0.00024803,120]
[349367232,1737138331315,160.0,0.00024816,120]
[349367236,1737138402259,2915.13,0.00025,120]
[349367240,1737138451514,160.0,0.00023289,120]
[349367242,1737138459897,2186.35,0.00025,120]
[349367243,1737138479344,1639.76,0.00025,120]
[349367247,1737138489941,1639.76,0.00025,120]
[349367248,1737138499304,3051.96189173,0.000125,2]
[349367251,1737138505736,1639.76,0.00025,120]
[349367252,1737138508717,546.96913506,0.00025,120]
[349367253,1737138511846,160.0,0.00024977,120]
[349367255,1737138527046,1639.76,0.00025,120]
[349367273,1737138631319,160.0,0.00022711,120]
[349367326,1737138632339,-351.39842988,0.00017606,2]
[349367328,1737138632349,-191.09200212,0.00017784,2]
[349367542,1737138638181,-160.30642776,0.00017784,2]
[349367544,1737138638191,-537.21051743,0.00019177,4]
[349367546,1737138638200,-351.39842988,0.00019864,2]
[349367548,1737138638210,-96.46060089,0.0002019,2]
[349367550,1737138638222,-203.53939911,0.0002019,2]
[349367552,1737138638231,-13017.1682141,0.00020191,2]
[349367554,1737138638241,-244.393509,0.0002049,2]
[349367556,1737138638251,-406.47106754,0.00021,12]
[349367558,1737138638262,-2333.52893246,0.00021,12]
[349367560,1737138638271,-474.08139956,0.00021166,2]
[349367562,1737138638281,-154.0316351,0.0002126,2]
[349367564,1737138638291,-215.0538638,0.0002126,2]
[349367566,1737138638300,-154.0316351,0.0002126,2]
[349367569,1737138638310,-10737.23396905,0.00021317,2]
[349367571,1737138638319,-207.59134369,0.0002137,2]
[349367575,1737138638329,-10737.23396905,0.00021498,2]
[349367578,1737138638339,-207.59134365,0.00021693,2]
[349367581,1737138638348,-10737.23396905,0.00021719,2]
[349367583,1737138638357,-154.0316351,0.000218,2]
[349367585,1737138638370,-215.0538638,0.000218,2]
[349367587,1737138638380,-353.5775999,0.00021808,2]
[349367589,1737138638390,-163.01,0.00021817,2]
[349367591,1737138638400,-159.09537386,0.00021817,2]
[349367593,1737138638410,-329.7140034,0.000219,2]
[349367595,1737138638420,-234.644045,0.000219,2]
[349367597,1737138638430,-163.82,0.000219,2]
[349367600,1737138638439,-2084.88125416,0.000219,3]
[349367602,1737138638449,-500.0,0.00021917,3]
[349367603,1737138638459,-500.0,0.00021917,3]
[349367606,1737138638470,-500.0,0.00021917,3]
[349367608,1737138638479,-392.90860682,0.00021917,3]
[349367610,1737138638489,-171.646216,0.00021917,3]
[349367612,1737138638499,-500.0,0.00021917,3]
[349367613,1737138638509,-502.22914529,0.00021917,3]
[349367616,1737138638518,-569.61,0.00021917,3]
[349367617,1737138638528,-500.0,0.00021917,3]
[349367620,1737138638538,-500.0,0.00021917,3]
[349367622,1737138638547,-500.0,0.00021917,3]
[349367624,1737138638558,-500.0,0.00021917,3]
[349367626,1737138638567,-641.48,0.00021917,3]
[349367628,1737138638577,-167.50047189,0.00021917,3]
[349367630,1737138638587,-500.0,0.00021917,3]
[349367632,1737138638597,-500.0,0.00021917,3]
[349367634,1737138638606,-501.90620605,0.00021917,3]
[349367636,1737138638616,-500.0,0.00021917,3]
[349367638,1737138638626,-500.0,0.00021917,3]
[349367640,1737138638635,-500.0,0.00021917,3]
[349367642,1737138638644,-500.0,0.00021917,3]
[349367644,1737138638654,-500.0,0.00021917,3]
[349367646,1737138638664,-500.0,0.00021917,3]
[349367648,1737138638673,-500.0,0.00021917,3]
[349367650,1737138638683,-500.0,0.00021917,3]
[349367652,1737138638693,-500.0,0.00021917,3]
[349367654,1737138638703,-502.09388987,0.00021917,3]
[349367656,1737138638713,-500.0,0.00021917,3]
[349367658,1737138638722,-564.17,0.00021917,3]
[349367660,1737138638732,-500.0,0.00021917,3]
[349367662,1737138638742,-371.28858741,0.00021917,3]
[349367664,1737138638753,-512.5737224,0.00021917,3]
[349367666,1737138638762,-384.04002935,0.00021917,3]
[349367668,1737138638771,-500.0,0.00021917,3]
[349367670,1737138638781,-506.29421908,0.00021917,3]
[349367672,1737138638790,-505.13477354,0.00021917,3]
[349367674,1737138638799,-500.0,0.00021917,3]
[349367676,1737138638809,-500.0,0.00021917,3]
[349367678,1737138638819,-500.0,0.00021917,3]
[349367680,1737138638829,-500.0,0.00021917,3]
[349367682,1737138638841,-500.0,0.00021917,3]
[349367684,1737138638851,-501.83300459,0.00021917,3]
[349367686,1737138638860,-500.0,0.00021917,3]
[349367688,1737138638870,-500.0,0.00021917,3]
[349367690,1737138638881,-500.0,0.00021917,3]
[349367692,1737138638891,-500.0,0.00021917,3]
[349367694,1737138638900,-500.0,0.00021917,3]
[349367695,1737138638911,-500.0,0.00021917,3]
[349367696,1737138638920,-500.0,0.00021917,3]
[349367697,1737138638930,-500.0,0.00021917,3]
[349367698,1737138638939,-500.0,0.00021917,3]
[349367699,1737138638949,-500.0,0.00021917,3]
[349367700,1737138638958,-500.0,0.00021917,3]
[349367701,1737138638968,-500.0,0.00021917,3]
[349367702,1737138638977,-500.0,0.00021917,3]
[349367703,1737138638986,-500.0,0.00021917,3]
[349367704,1737138638996,-500.0,0.00021917,3]
[349367705,1737138639005,-500.0,0.00021917,3]
[349367706,1737138639014,-500.0,0.00021917,3]
[349367707,1737138639023,-500.0,0.00021917,3]
[349367708,1737138639033,-500.0,0.00021917,3]
[349367709,1737138639043,-500.0,0.00021917,3]
[349367710,1737138639052,-500.0,0.00021917,3]
[349367711,1737138639062,-500.0,0.00021917,3]
[349367712,1737138639071,-500.0,0.00021917,3]
[349367713,1737138639081,-500.0,0.00021917,3]
[349367715,1737138639090,-500.0,0.00021917,3]
[349367717,1737138639104,-637.35276734,0.00021917,3]
[349367719,1737138639115,-500.0,0.00021917,3]
[349367721,1737138639128,-500.0,0.00021917,3]
[349367723,1737138639139,-500.0,0.00021917,3]
[349367725,1737138639148,-500.0,0.00021917,3]
[349367727,1737138639157,-500.0,0.00021917,3]
[349367729,1737138639167,-500.0,0.00021917,3]
[349367731,1737138639176,-508.92620435,0.00021917,3]
[349367733,1737138639185,-500.0,0.00021917,3]
[349367735,1737138639195,-500.0,0.00021917,3]
[349367737,1737138639204,-500.0,0.00021917,3]
[349367739,1737138639214,-500.0,0.00021917,3]
[349367741,1737138639223,-899.8,0.00021917,3]
[349367743,1737138639233,-899.8,0.00021917,3]
[349367745,1737138639242,-899.8,0.00021917,3]
[349367747,1737138639252,-899.8,0.00021917,3]
[349367749,1737138639263,-899.8,0.00021917,3]
[349367751,1737138639273,-899.8,0.00021917,3]
[349367753,1737138639282,-899.8,0.00021917,3]
[349367755,1737138639292,-899.8,0.00021917,3]
[349367757,1737138639301,-500.0,0.00021917,3]
[349367759,1737138639311,-899.8,0.00021917,3]
[349367761,1737138639320,-194.46,0.00021917,3]
[349367763,1737138639329,-332.05320724,0.00021917,3]
[349367765,1737138639339,-500.0,0.00021917,3]
[349367767,1737138639348,-224.6559203,0.00021917,3]
[349367769,1737138639357,-500.0,0.00021917,3]
[349367771,1737138639368,-500.0,0.00021917,3]
[349367773,1737138639380,-500.0,0.00021917,3]
[349367775,1737138639395,-500.0,0.00021917,3]
[349367777,1737138639404,-500.0,0.00021917,3]
[349367779,1737138639414,-500.0,0.00021917,3]
[349367781,1737138639423,-500.0,0.00021917,3]
[349367783,1737138639432,-500.0,0.00021917,3]
[349367785,1737138639442,-248.94755676,0.00021917,3]
[349367786,1737138639452,-500.0,0.00021917,3]
[349367788,1737138639461,-500.0,0.00021917,3]
[349367790,1737138639471,-500.0,0.00021917,3]
[349367792,1737138639481,-500.0,0.00021917,3]
[349367795,1737138639491,-500.0,0.00021917,3]
[349367797,1737138639504,-500.68693851,0.00021917,3]
[349367799,1737138639515,-500.53260514,0.00021917,3]
[349367801,1737138639525,-500.0,0.00021917,3]
[349367803,1737138639535,-500.0,0.00021917,3]
[349367805,1737138639545,-295.0,0.00021917,3]
[349367807,1737138639555,-500.0,0.00021917,3]
[349367809,1737138639564,-247.63636655,0.00021917,3]
[349367811,1737138639574,-500.0,0.00021917,3]
[349367813,1737138639583,-697.15,0.00021917,2]
[349367814,1737138639593,-500.0,0.00021917,2]
[349367816,1737138639602,-500.0,0.00021917,3]
[349367819,1737138639612,-1758.29,0.00021917,3]
[349367821,1737138639622,-500.0,0.00021917,3]
[349367823,1737138639632,-500.0,0.00021917,3]
[349367824,1737138639641,-500.0,0.00021917,3]
[349367827,1737138639651,-500.0,0.00021917,3]
[349367829,1737138639661,-500.0,0.00021917,3]
[349367831,1737138639671,-973.34,0.00021917,3]
[349367832,1737138639680,-500.0,0.00021917,3]
[349367834,1737138639690,-10041.85,0.00021917,3]
[349367836,1737138639700,-500.0,0.00021917,3]
[349367838,1737138639710,-500.0,0.00021917,3]
[349367841,1737138639720,-500.0,0.00021917,3]
[349367843,1737138639730,-605.25915844,0.00021917,3]
[349367844,1737138639740,-2390.63,0.00021917,3]
[349367847,1737138639759,-511.84265588,0.00021917,3]
[349367850,1737138639770,-505.89071778,0.00021917,3]
[349367852,1737138639780,-500.0,0.00021917,3]
[349367854,1737138639790,-688.95,0.00021917,3]
[349367856,1737138639801,-500.0,0.00021917,3]
[349367858,1737138639810,-500.0,0.00021917,3]
[349367860,1737138639822,-500.0,0.00021917,3]
[349367862,1737138639834,-500.0,0.00021917,3]
[349367865,1737138639846,-1301.73,0.00021917,3]
[349367868,1737138639856,-503.74193724,0.00021917,3]
[349367871,1737138639866,-500.0,0.00021917,3]
[349367874,1737138639877,-500.0,0.00021917,3]
[349367877,1737138639889,-1137.63,0.00021917,3]
[349367880,1737138639899,-2816.5,0.00021917,3]
[349367883,1737138639909,-625.5,0.00021917,3]
[349367885,1737138639919,-500.0,0.00021917,3]
[349367887,1737138639929,-500.0,0.00021917,3]
[349367889,1737138639940,-500.0,0.00021917,3]
[349367892,1737138639950,-806.13,0.00021917,3]
[349367894,1737138639959,-923.99,0.00021917,3]
[349367896,1737138639970,-500.0,0.00021917,3]
[349367898,1737138639979,-527.92,0.00021917,3]
[349367900,1737138639989,-414.18505106,0.00021917,3]
[349367902,1737138640000,-210.69991682,0.00021917,3]
[349367904,1737138640010,-500.0,0.00021917,3]
[349367906,1737138640020,-500.0,0.00021917,3]
[349367908,1737138640030,-500.0,0.00021917,3]
[349367910,1737138640040,-500.0,0.00021917,3]
[349367912,1737138640049,-500.0,0.00021917,3]
[349367914,1737138640059,-500.0,0.00021917,3]
[349367916,1737138640069,-500.0,0.00021917,3]
[349367918,1737138640078,-407.78006947,0.00021917,3]
[349367920,1737138640088,-9465.89,0.00021917,3]
[349367922,1737138640097,-500.0,0.00021917,3]
[349367924,1737138640107,-518.4,0.00021917,3]
[349367926,1737138640117,-500.0,0.00021917,3]
[349367928,1737138640127,-1403.45,0.00021917,3]
[349367930,1737138640137,-179.83818306,0.00021917,3]
[349367933,1737138640147,-500.0,0.00021917,3]
[349367935,1737138640156,-500.0,0.00021917,3]
[349367937,1737138640166,-500.0,0.00021917,3]
[349367939,1737138640175,-500.0,0.00021917,3]
[349367941,1737138640185,-500.0,0.00021917,3]
[349367943,1737138640195,-500.0,0.00021917,3]
[349367945,1737138640205,-500.0,0.00021917,3]
[349367947,1737138640215,-500.0,0.00021917,3]
[349367949,1737138640225,-500.0,0.00021917,3]
[349367951,1737138640235,-500.0,0.00021917,3]
[349367953,1737138640246,-500.0,0.00021917,3]
[349367955,1737138640256,-500.0,0.00021917,3]
[349367957,1737138640265,-500.0,0.00021917,3]
[349367959,1737138640275,-500.0,0.00021917,3]
[349367961,1737138640285,-500.0,0.00021917,3]
[349367963,1737138640295,-500.0,0.00021917,3]
[349367965,1737138640305,-500.0,0.00021917,3]
[349367967,1737138640315,-500.0,0.00021917,3]
[349367969,1737138640326,-500.0,0.00021917,3]
[349367971,1737138640336,-2965.37,0.00021917,3]
[349367973,1737138640346,-500.0,0.00021917,3]
[349367975,1737138640356,-1144.91,0.00021917,3]
[349367977,1737138640366,-507.19360152,0.00021917,3]
[349367995,1737138640516,-500.0,0.00021917,3]
[349367997,1737138640526,-500.0,0.00021917,3]
[349367999,1737138640536,-499.0,0.00021917,2]
[349368001,1737138640546,-500.0,0.00021917,3]
[349368003,1737138640555,-469.33912013,0.00021917,2]
[349368005,1737138640565,-786.39,0.00021917,3]
[349368006,1737138640574,-158.225062,0.00021925,2]
[349368008,1737138640584,-2323.53651209,0.00021954,3]
[349368011,1737138640594,-500.0,0.00021967,2]
[349368012,1737138640603,-500.0,0.00021967,2]
[349368015,1737138640613,-500.0,0.00021967,2]
[349368016,1737138640623,-443.9939471,0.00021967,2]
[349368019,1737138640632,-500.0,0.00021967,2]
[349368020,1737138640641,-500.0,0.00021967,2]
[349368023,1737138640651,-500.0,0.00021967,2]
[349368024,1737138640660,-500.0,0.00021967,2]
[349368027,1737138640671,-500.0,0.00021967,2]
[349368029,1737138640681,-500.0,0.00021967,2]
[349368031,1737138640690,-500.0,0.00021967,2]
[349368033,1737138640699,-414.97802043,0.00021967,2]
[349368034,1737138640708,-500.0,0.00021967,2]
[349368036,1737138640718,-500.0,0.00021967,2]
[349368039,1737138640728,-567.96447367,0.00021967,2]
[349368041,1737138640737,-500.0,0.00021967,2]
[349368043,1737138640747,-500.0,0.00021967,2]
[349368045,1737138640756,-347.57040087,0.00021967,2]
[349368047,1737138640766,-500.0,0.00021967,2]
[349368049,1737138640775,-500.0,0.00021967,2]
[349368051,1737138640785,-500.0,0.00021967,2]
[349368053,1737138640794,-500.0,0.00021967,2]
[349368055,1737138640803,-500.0,0.00021967,2]
[349368057,1737138640813,-500.0,0.00021967,2]
[349368058,1737138640823,-500.0,0.00021967,2]
[349368060,1737138640835,-500.0,0.00021967,2]
[349368062,1737138640845,-500.0,0.00021967,2]
[349368064,1737138640854,-500.0,0.00021967,2]
[349368066,1737138640863,-500.0,0.00021967,2]
[349368068,1737138640873,-500.0,0.00021967,2]
[349368070,1737138640884,-8.9611398,0.00021967,2]
[349368073,1737138640901,-491.0388602,0.00021967,2]
[349368075,1737138640912,-500.0,0.00021967,2]
[349368077,1737138640922,-500.0,0.00021967,2]
[349368079,1737138640932,-500.0,0.00021967,2]
[349368081,1737138640943,-162.58804323,0.00021967,2]
[349368084,1737138640953,-500.0,0.00021967,2]
[349368086,1737138640963,-500.0,0.00021967,2]
[349368088,1737138640972,-500.0,0.00021967,2]
[349368090,1737138640982,-500.0,0.00021967,2]
[349368092,1737138640992,-500.0,0.00021967,2]
[349368094,1737138641003,-500.0,0.00021967,2]
[349368096,1737138641013,-500.0,0.00021967,2]
[349368098,1737138641023,-500.0,0.00021967,2]
[349368100,1737138641033,-500.0,0.00021967,2]
[349368102,1737138641043,-500.0,0.00021967,2]
[349368103,1737138641052,-500.0,0.00021967,2]
[349368105,1737138641061,-500.0,0.00021967,2]
[349368108,1737138641071,-500.0,0.00021967,2]
[349368110,1737138641081,-500.0,0.00021967,2]
[349368112,1737138641091,-500.0,0.00021967,2]
[349368114,1737138641100,-500.0,0.00021967,2]
[349368116,1737138641110,-500.0,0.00021967,2]
[349368118,1737138641119,-500.0,0.00021967,2]
[349368120,1737138641129,-500.0,0.00021967,2]
[349368122,1737138641138,-500.0,0.00021967,2]
[349368124,1737138641148,-500.0,0.00021967,2]
[349368126,1737138641158,-500.0,0.00021967,2]
[349368128,1737138641167,-500.0,0.00021967,2]
[349368130,1737138641177,-6.78602697,0.00021967,2]
[349368144,1737138641305,-160.30642776,0.00017606,2]
[349368146,1737138641315,-500.0,0.00021917,3]
[349368148,1737138641325,-493.21397303,0.00021967,2]
[349368150,1737138641335,-500.0,0.00021967,2]
[349368152,1737138641345,-500.0,0.00021967,2]
[349368154,1737138641355,-500.0,0.00021967,2]
[349368156,1737138641364,-500.0,0.00021967,2]
[349368158,1737138641374,-500.0,0.00021967,2]
[349368160,1737138641383,-500.0,0.00021967,2]
[349368162,1737138641392,-500.0,0.00021967,2]
[349368164,1737138641402,-500.0,0.00021967,2]
[349368166,1737138641411,-500.0,0.00021967,2]
[349368167,1737138641421,-500.0,0.00021967,2]
[349368169,1737138641431,-500.0,0.00021967,2]
[349368171,1737138641441,-500.0,0.00021967,2]
[349368173,1737138641450,-500.0,0.00021967,2]
[349368176,1737138641460,-500.0,0.00021967,2]
[349368177,1737138641470,-500.0,0.00021967,2]
[349368179,1737138641480,-170.4066481,0.00021967,2]
[349368181,1737138641490,-500.0,0.00021967,2]
[349368183,1737138641502,-500.0,0.00021967,2]
[349368185,1737138641511,-500.0,0.00021967,2]
[349368188,1737138641522,-500.0,0.00021967,2]
[349368189,1737138641531,-500.0,0.00021968,3]
[349368191,1737138641540,-500.0,0.00021968,3]
[349368193,1737138641550,-500.0,0.00021968,3]
[349368195,1737138641559,-2084.88125413,0.00021969,3]
[349368198,1737138641568,-500.60598341,0.00021973,2]
[349368199,1737138641577,-500.82980106,0.00021973,2]
[349368201,1737138641587,-500.0,0.00021973,2]
[349368203,1737138641597,-500.0,0.00021973,2]
[349368205,1737138641607,-320.57917908,0.00021973,2]
[349368207,1737138641616,-500.35557878,0.00021973,2]
[349368209,1737138641626,-420.0,0.0002198,2]
[349368211,1737138641634,-500.0,0.00021989,3]
[349368213,1737138641644,-500.0,0.00021989,3]
[349368215,1737138641654,-43953.51336196,0.0002199,7]
[349368217,1737138641663,-407.9086278,0.00022,6]
[349368219,1737138641673,-1008.26665474,0.00022,10]
[349368221,1737138641682,-207.59134365,0.00022016,2]
[349368223,1737138641693,-158.225062,0.00022027,2]
[349368225,1737138641702,-500.0,0.00022037,3]
[349368227,1737138641712,-2084.88125413,0.00022038,3]
[349368230,1737138641722,-500.0,0.0002205,3]
[349368232,1737138641731,-500.0,0.0002205,3]
[349368234,1737138641740,-500.0,0.0002205,3]
[349368236,1737138641751,-899.8,0.0002205,3]
[349368238,1737138641761,-899.8,0.0002205,3]
[349368240,1737138641771,-899.8,0.0002205,3]
[349368242,1737138641780,-491.4061117,0.00022053,3]
[349368244,1737138641790,-899.8,0.00022053,3]
[349368246,1737138641799,-899.8,0.00022053,3]
[349368248,1737138641810,-899.8,0.00022053,3]
[349368250,1737138641821,-899.8,0.00022053,3]
[349368252,1737138641831,-500.0,0.00022053,3]
[349368254,1737138641844,-500.0,0.00022053,3]
[349368256,1737138641854,-500.0,0.00022053,3]
[349368258,1737138641863,-500.0,0.00022053,3]
[349368260,1737138641873,-316.96230393,0.00022053,3]
[349368262,1737138641884,-11042.6408004,0.00022053,5]
[349368264,1737138641893,-34905.21402035,0.00022054,5]
[349368266,1737138641903,-549.06630047,0.00022054,3]
[349368268,1737138641916,-464.0,0.00022054,3]
[349368270,1737138641925,-500.0,0.00022054,3]
[349368272,1737138641934,-609.30933581,0.00022054,3]
[349368274,1737138641943,-500.0,0.00022054,3]
[349368276,1737138641953,-509.89642439,0.00022054,3]
[349368278,1737138641962,-500.0,0.00022054,3]
[349368280,1737138641972,-614.32431529,0.00022054,3]
[349368282,1737138641981,-500.0,0.00022054,3]
[349368284,1737138641991,-312.7742496,0.00022054,3]
[349368286,1737138642002,-500.0,0.00022054,3]
[349368288,1737138642014,-343.90485804,0.00022054,3]
[349368290,1737138642034,-500.0,0.00022054,3]
[349368292,1737138642045,-258.5902547,0.00022054,3]
[349368294,1737138642055,-500.0,0.00022054,3]
[349368296,1737138642065,-595.4,0.00022054,3]
[349368298,1737138642074,-500.0,0.00022054,3]
[349368300,1737138642083,-500.0,0.00022054,3]
[349368302,1737138642092,-500.0000008,0.00022054,3]
[349368304,1737138642102,-500.0,0.00022054,3]
[349368306,1737138642112,-257.37,0.00022054,3]
[349368308,1737138642122,-500.0,0.00022054,3]
[349368310,1737138642131,-500.0,0.00022054,3]
[349368312,1737138642141,-500.0,0.00022054,3]
[349368314,1737138642150,-500.0,0.00022054,3]
[349368316,1737138642160,-500.0,0.00022054,3]
[349368318,1737138642170,-500.0,0.00022054,3]
[349368320,1737138642179,-548.95000004,0.00022054,3]
[349368322,1737138642189,-500.0,0.00022054,3]
[349368324,1737138642198,-500.0,0.00022054,3]
[349368326,1737138642208,-516.10599631,0.00022054,3]
[349368328,1737138642218,-505.61327145,0.00022054,3]